Cogmind - Beta 14 --- EXPLORER MODE // 2025.01.18 @ 12:29:32 Player: Glitch Artist Result: Self-destructed Performance ------------- Evolutions (1) 500 Regions Visited (2) 400 Robots Destroyed (10) 50 Value Destroyed (168) 168 Prototype IDs (0) 0 Alien Tech Used (0) 0 Bonus (0) 0 TOTAL SCORE: 1118 Bonus ------- None Cogmind --------- Core Integrity 350/400 Matter 300/300 Energy 125/125 System Corruption 0% Temperature Cool (0) Movement Flying (120) Ox1 Location -9/Materials Parts ------- > --- POWER (1) -------- Light Ion Engine > --- PROPULSION (3) --- Flight Unit > --- UTILITY (3) ------ Visual Processing Unit Targeting Computer Light Armor Plating > --- WEAPON (3) ------- Light Assault Rifle Light Assault Rifle > --- INVENTORY (5) ---- Hover Unit Small Matter Pod (50) Light EM Pulse Cannon Autogun Peak State ------------ > --- POWER ------------ Light Ion Engine > --- PROPULSION ------- Flight Unit Flight Unit > --- UTILITY ---------- Targeting Computer Light Armor Plating > --- WEAPON ----------- Light EM Pulse Cannon Light Assault Rifle Light Assault Rifle > --- INVENTORY -------- Small Matter Pod [Rating: 9] Favorites ----------- Power Light Ion Engine Engine Light Ion Engine Propulsion Flight Unit Leg Aluminum Leg Wheel Wheel Flight Unit Flight Unit Utility Targeting Computer Storage Small Matter Pod Processor Targeting Computer Protection Light Armor Plating Weapon Light Assault Rifle Energy Gun Small Laser Energy Cannon Light EM Pulse Cannon Ballistic Gun Light Assault Rifle Build | -11 -10 -9 ------- Run | Yrd Mat Mat Slots Evolved 3 | . 1 2 Power . | . . . Propulsion 1 | . 1 . Utility 1 | . . 1 Weapon 1 | . . 1 Parts Attached 19 | 9 6 4 Power 2 | 1 1 . Engine 2 | 1 1 . Core . | . . . Reactor . | . . . Propulsion 8 | 4 3 1 Treads . | . . . Leg 1 | 1 . . Wheel 3 | 3 . . Hover . | . . . Flight 4 | . 3 1 Utility 4 | 2 . 2 Device . | . . . Storage 1 | . . 1 Processor 2 | 1 . 1 Hackware . | . . . Protection 1 | 1 . . Artifact . | . . . Weapon 5 | 2 2 1 Energy Gun 2 | 2 . . Energy Cannon 1 | . . 1 Ballistic Gun 2 | . 2 . Ballistic Cannon . | . . . Launcher . | . . . Special Weapon . | . . . Impact Weapon . | . . . Slashing Weapon . | . . . Piercing Weapon . | . . . Special Melee Weapon . | . . . Unidentified Prototypes . | . . . Parts Lost 1 | . . 1 Power . | . . . Propulsion 1 | . . 1 Utility . | . . . Weapon . | . . . Highest Loss Streak 1 | . . 1 To Critical Strikes . | . . . Average Slot Usage (%) 75 | . 83 70 Engine 10 | . 10 10 Wheel 3 | . 9 . Flight 15 | . 14 16 Processor 13 | . 12 13 Protection 10 | . 12 10 Energy Gun 5 | . 13 . Ballistic Gun 16 | . 11 20 Peak Build Rating 9 | 7 8 9 Average Rating 6 | 4 6 7 On Entrance 4 | . 7 7 Naked Turns . | . . . Heaviest Build 9 | 9 9 8 Greatest Support 20 | 20 20 8 Greatest Overweight (x) 1 | . 1 1 Average Overweight (x) . | . . . Largest Inventory Capacity 5 | 5 5 5 Average Capacity 5 | 5 5 5 Most Carried 4 | 2 2 4 Average Carried 1 | . . 2 Final Capacity 5 | 5 5 5 Final Carried 4 | . 1 4 Class Distribution -------------------- 100% | Hacker-Mutant Dominant Class ---------------- Hacker-Mutant | -10/Materials Hacker-Mutant | -9/Materials Resources | -11 -10 -9 ----------- Run | Yrd Mat Mat Matter Collected 471 | 290 90 91 Remotely . | . . . Salvage Created 366 | 122 89 155 Parts 26 | 8 6 12 Haulers Intercepted . | . . . Recyclers Shooed 3 | 1 1 1 Parts Field Recycled . | . . . Retrieved Matter . | . . . Parts Self-Destructed . | . . . Prevented . | . . . Kills | -11 -10 -9 ------- Run | Yrd Mat Mat Combat Hostiles Destroyed 4 | . 2 2 Guns 4 | . 2 2 Classes Destroyed 5 | 2 1 2 Tunneler 2 | 2 . . Recycler 2 | 1 1 . Watcher 2 | . . 2 Swarmer 2 | . 2 . Sentry 2 | . . 2 Best Kill Streak 3 | 2 3 2 Combat Bots Only 2 | . 2 1 Max Kills in Single Turn 1 | 1 1 1 Gunslinging . | . . . Exploded . | . . . Melee . | . . . Uniques/NPCs Destroyed . | . . . Combat | -11 -10 -9 -------- Run | Yrd Mat Mat Hostile Shots Fired 53 | . 10 43 Missed 20 | . 1 19 Damage Taken 242 | . 48 194 Core 55 | . 5 50 Absorbed by Shields . | . . . Ignored by Resistances 154 | . 32 122 Regen/Repaired (Parts) 34 | . 34 . Core Remaining (%) 99 | 100 98 . Volleys Fired 28 | 5 6 17 Largest 2 | 2 2 2 Hottest 90 | 90 90 40 Shots Fired 53 | 7 12 34 Gun 53 | 7 12 34 Cannon . | . . . Launcher . | . . . Special . | . . . Kinetic 34 | . . 34 Thermal 19 | 7 12 . Explosive . | . . . Electromagnetic . | . . . Robot Hit Streak 39 | 6 8 39 Robot Miss Streak 1 | . 1 1 Penetration Max . | . . . Secondary Targets . | . . . Shots Hit Robots 46 | 6 9 31 Core Hits 20 | 4 4 12 Critical Kills . | . . . Critical Parts Destroyed 2 | . . 2 Critical Strikes 3 | . 1 2 Burn 1 | . 1 . Destroy 2 | . . 2 Melee Attacks . | . . . Impact . | . . . Slashing . | . . . Piercing . | . . . Sneak Attacks . | . . . Combat Hostiles . | . . . Follow-up Attacks . | . . . Damage Inflicted 423 | 67 103 253 Guns 416 | 67 103 246 Cannons . | . . . Explosions . | . . . Melee . | . . . Ramming 7 | . . 7 Kinetic 246 | . . 246 Thermal 170 | 67 103 . Explosive . | . . . Electromagnetic . | . . . Impact . | . . . Slashing . | . . . Piercing . | . . . Highest Corruption . | . . . Average Corruption . | . . . Corruption Purged . | . . . Corruption Blocked . | . . . Overload Shots . | . . . Overflow Damage . | . . . Projectiles . | . . . Explosions . | . . . Melee . | . . . Knockbacks . | . . . Impact . | . . . Kinetic . | . . . Secondary . | . . . Self-Inflicted Damage 3 | . . 3 Shots . | . . . Rammed 2 | . . 2 Targets Rammed 2 | . . 2 Kicked . | . . . Crushed . | . . . Highest Temperature 156 | 39 156 64 Average Temperature 42 | 21 77 21 Received Heat Transfer 171 | . . 171 Siege Activations . | . . . Robots Corrupted . | . . . Combat Hostiles . | . . . Parts Fried . | . . . Impact Corruptions . | . . . Robots Melted . | . . . Combat Hostiles . | . . . Parts Melted 3 | . 3 . Heat Transferred 497 | 162 335 . Parts Sabotaged . | . . . Parts Stolen . | . . . Parts Stripped . | . . . Power Chain Reactions . | . . . Alert | -11 -10 -9 ------- Run | Yrd Mat Mat Peak Influence 247 | 15 62 247 Initial 18 | . 7 18 Average 88 | 6 48 133 Maximum Alert Level 1 | . . 1 Low Security (%) 84 | 100 100 71 Level 1 15 | . . 28 Level 2 . | . . . Level 3 . | . . . Level 4 . | . . . Level 5 . | . . . High Security . | . . . Max Security . | . . . Squads Dispatched 1 | . . 1 Investigation . | . . . Extermination . | . . . Reinforcement 1 | . . 1 Assault . | . . . Garrison . | . . . Intercept . | . . . Searches Triggered . | . . . Construction Impeded . | . . . Haulers Reinforced . | . . . Active Scanning Responses . | . . . Cargo Convoy Interrupts . | . . . Stealth | -11 -10 -9 --------- Run | Yrd Mat Mat Distress Signals . | . . . Communications Jammed . | . . . Distress Signals . | . . . Times Spotted 13 | . 2 11 Peak Tracking Total 6 | . 2 6 Tactical Retreats 2 | . . 2 Traps | -11 -10 -9 ------- Run | Yrd Mat Mat Traps Triggered . | . . . Indirectly . | . . . Trap Hack Attempts . | . . . Triggered . | . . . Disarmed . | . . . Reprogrammed . | . . . Reused . | . . . Traps Extracted . | . . . Installed . | . . . Triggered . | . . . Machines | -11 -10 -9 ---------- Run | Yrd Mat Mat Machines Disabled . | . . . Max in Single Turn . | . . . Machines Repaired . | . . . Machines Dismantled . | . . . Machines Sabotaged . | . . . Overloaded Fab Kills . | . . . Hacking | -11 -10 -9 --------- Run | Yrd Mat Mat Machines Accessed 6 | . 3 3 Terminals 2 | . 1 1 Fabricators . | . . . Repair Stations 1 | . 1 . Recycling Units 2 | . 1 1 Scanalyzers 1 | . . 1 Garrison Access . | . . . Total Hacks 12 | . 8 4 Successful 12 | . 8 4 Failed . | . . . Catastrophic . | . . . Database Lockouts . | . . . Manual 2 | . 1 1 Terminals 3 | . 2 1 Fabricators . | . . . Repair Stations 4 | . 4 . Recycling Units 3 | . 2 1 Scanalyzers 2 | . . 2 Garrison Access . | . . . Terminal Hacks 3 | . 2 1 Registered Components 1 | . 1 . Zone Layout 2 | . 1 1 Fabricator Hacks . | . . . Repair Station Hacks 4 | . 4 . Scan Component 2 | . 2 . Repair 2 | . 2 . Recycling Unit Hacks 3 | . 2 1 Report Inventory 1 | . . 1 Retrieve Matter 1 | . 1 . Retrieve Components 1 | . 1 . Scanalyzer 2 | . . 2 Insert Component 1 | . . 1 Analyze 1 | . . 1 Garrison Access Hacks . | . . . Unauthorized Hacks . | . . . Terminals . | . . . Fabricators . | . . . Repair Stations . | . . . Recycling Units . | . . . Scanalyzers . | . . . Garrison Access . | . . . Data Cores Recovered . | . . . Used . | . . . Hacking Detections 3 | . 3 . Full Trace Events . | . . . Feedback Events . | . . . Feedback Blocked . | . . . Robot Schematics Acquired . | . . . Robots Built . | . . . Authchips . | . . . Time . | . . . Total Robot Build Rating . | . . . Part Schematics Acquired 1 | . . 1 Parts Built . | . . . Authchips . | . . . Time . | . . . Total Part Build Rating . | . . . Parts Repaired 2 | . 2 . Time 52 | . 52 . Parts Recycled . | . . . Recycled Matter . | . . . Retrieved Matter . | . . . Retrieved Components . | . . . Parts Scanalyzed 1 | . . 1 Part Schematics Acquired 1 | . . 1 Parts Damaged . | . . . Bothacking | -11 -10 -9 ------------ Run | Yrd Mat Mat Used RIF Installer . | . . . Robots Hacked . | . . . Non-combat . | . . . Combat . | . . . Robot Hacks Applied . | . . . Relay Couplers Released . | . . . Fabnet Peak Effective % . | . . . Robots Rewired . | . . . Allies Hacked . | . . . Hacks Repelled . | . . . Allies | -11 -10 -9 -------- Run | Yrd Mat Mat Total Allies . | . . . Largest Group . | . . . Highest-Rated Group . | . . . Highest-Rated Ally . | . . . Total Orders . | . . . Ally Attacks . | . . . Total Damage . | . . . Kills . | . . . Allies Corrupted . | . . . Allies Melted . | . . . Intel | -11 -10 -9 ------- Run | Yrd Mat Mat Robot Analysis Total . | . . . Derelict Logs Recovered . | . . . Drone Launches . | . . . Drone Recoveries . | . . . Exploration | -11 -10 -9 ------------- Run | Yrd Mat Mat Turns Passed 650 | 82 223 345 Spaces Moved 713 | 59 213 441 Core 13 | 13 . . Treads . | . . . Legs 5 | 5 . . Wheels 112 | 41 71 . Hover . | . . . Flight 583 | . 142 441 Fastest Speed 37 | 50 37 37 Average Speed 56 | 86 64 49 Slowest Speed 120 | 120 117 120 Overloaded Moves . | . . . Propulsion Burnouts . | . . . Robots Hopped . | . . . Cave-ins Triggered . | . . . Exploration Rate (%) 20 | 5 34 23 Regions Visited 2 Branch Regions . Pre-discovered Areas . | . . . Known Exits Taken 2 | 1 1 . Unknown Exits Taken . | . . . Scrap Searched . | . . . Spaces Dug . | . . . Terrain Destroyed . | . . . Melee . | . . . Projectile . | . . . AOE . | . . . Terrain Rammed . | . . . Walls Destroyed . | . . . Machines Disabled . | . . . Actions | -11 -10 -9 --------- Run | Yrd Mat Mat Total 912 | 83 287 542 Wait 123 | . 52 71 Move 711 | 58 212 441 Hop . | . . . Pick Up 20 | 9 7 4 Fast Attach . | . . . Attach 17 | 8 5 4 Detach 3 | . . 3 Swap 2 | 1 1 . Drop 6 | 2 4 . Fire 28 | 5 6 17 Melee . | . . . Ram 2 | . . 2 Kick . | . . . Crush . | . . . Escape Stasis . | . . . Rewire . | . . . Trap . | . . . Miscellaneous . | . . . Route ------- -11/Scrapyard -10/Materials (discovered 2 exits: *Mat / *Min) -9/Materials History --------- Turn | Location | Event 5 | -11/Scrapyard | Identified exit to Materials 5 | -11/Scrapyard | Discovered exit to Materials (range 16) 83 | -11/Scrapyard | Entered Materials 83 | -10/Materials | Evolved 1 slot: Propulsion x1 173 | -10/Materials | Identified exit to Mines 173 | -10/Materials | Discovered exit to Mines (range 12) 262 | -10/Materials | Repaired Flight Unit 290 | -10/Materials | Repaired Lgt. Ion Engine 298 | -10/Materials | Identified exit to Materials 298 | -10/Materials | Discovered exit to Materials (range 13) 306 | -10/Materials | Entered another Materials area 306 | -9/Materials | Evolved 2 slots: Utility x1, Weapon x1 345 | -9/Materials | Build established: Hacker-Mutant 651 | -9/Materials | Self-destructed Last Messages --------------- 00558_ K-01 Serf cleans the Fusion Modulator. 00560_ Acquired 2 matter. 00561_ K-01 Serf cleans the Fusion Modulator. 00562_ Y-45 Defender destroyed. 00563_ Acquired 2 matter. 00564_ K-01 Serf collects debris. 00565_ Acquired Hover Unit. 00568_ K-01 Serf collects debris. 00569_ K-01 Serf cleans the Fusion Modulator. 00573_ K-01 Serf collects debris. 00579_ R-06 Scavenger collects Lgt. Armor Plating. 00625_ Critical hit (Burn: +37). 00639_ Acquired 1 matter. 00647_ C-30 ARC bursts open, deploying its payload. 00647_ S-10 Pest unfolds itself. 00648_ Slammed into S-10 Pest. 00649_ K-01 Serf collects debris. 00650_ Slammed into S-10 Pest. Map ----- +----------------------------------------------------+ | ?????????????????????????????????????????????????? | | ?????????????????????????????????????????????????? | | ?????????????????????????????????????????????????? | | ?????????????????????????????????????????????????? | | ?????????????????????????????????????????????????? | | ?????????????????#" # + ??????? | | ?????????????????#" # #### ??????? | | ?????????????????#""" # #??# " ??????? | | ?????????????????#### #######??# T #??????? | | ????????????######### ##????# " #??????? | | ???????????? #????# #??????? | | ???????????? #????# #??????? | | ???????????? #????# """" #??????? | | ????????????#### #????# """" #??????? | | ???????????????# ##????# """" #??????? | | ????????????#### #####????# #??????? | | ???????????? # ########## #??????? | | ???????????? T # """" #??????? | | ???????????? # ############### """" #??????? | | ???????????? # #?????######### """" #??????? | | ???????????? + #?????# T # #??????? | | ???????????? # #?????# """ # #??????? | | ????????????#### ##????# """ # """" / ?????? | | ??????????????# g ###### """ # """" #??????? | | ??????????????# g # # """" #??????? | | ############### %@s """!# #??????? | | # ss"""%#[ #??????? | | ######### #### # %""" +% #??????? | | ## ########??# # #* #??????? | | ######## """ ########### ############## #??????? | | ??????## "Y" # ## #?# ## #??????? | | ??????# # ## #?# # ??????? | | ##########+###= ## ### """ # ??????? | | #%= ## # """"" + ??????? | | +! ## # """"" # ??????? | | # ## # """"" # ??????? | | ############## ## #?????????????????????? | | ?????????????# ## #?????????????????????? | | ?????????????# ## #?????????????????????? | | ######################## #?????????????????????? | | #?????????????????????? | | #?????????????????????? | | #?????????????????????? | | ######+######+########## #?????????????????????? | | # # #??# #?????????????????????? | | # # "" #??# #?????????????????????? | | # # ""S #??# #?????????????????????? | | # / "" #??#####?????????????????????? | | # # #????????????????????????????? | | # # """ #????????????????????????????? | +----------------------------------------------------+ Best States ------------- Heat Dissipation 28 Energy Generation 10 Energy Capacity 125 Matter Stores 320 Matter Capacity 350 Sight Range 18 Terrain Scan Density 10 Armor Coverage 150 Resistance: KI 35 Resistance: TH 35 Resistance: EX 35 Resistance: EM 35 Resistance: I 35 Resistance: S 35 Resistance: P 35 Evasion (%) 62 Targeting Accuracy 5 Offensive Hacking 20 Item Schematics ----------------- Flight Unit | -9/Materials | Scanalyzed Robot Schematics ------------------ None Fabricated ------------ Nothing Alien Tech Used ----------------- None Achievements -------------- None Challenges ------------ None Game ------ Seed TransmissionSwordMonowheel Manual? 0 Play Time 00:10:33 Cumulative 9.6 hours Start 2025.01.18 @ 12:22:07 End 2025.01.18 @ 12:29:32 Sessions 1 Manual Loads 0 Difficulty Explorer Special Mode None Game No. 17 Rogue 8 Adventurer 0 Explorer 9 Win Type - Total 0 Types 0/0/0/0/0/0/0/0/0 Lore% 4 Gallery% 17 Achievement% 19 Wizard Run 0 Options --------- Layout 1 ASCII 0 Keyboard 0 Movement Arrows Keybinds 0 Fullscreen 2 Font 24/X11 Map View 50x35 Zoom Use 0% Tactical HUD 1 Map Filters NONE Filters NONE Steam 1 RUN: 4d623e89-24f2-4b0a-8544-e8aa42570e55